bitfinex/quotes_SOLUSD_20250908
["timestamp","ask_amount","ask_price","bid_price","bid_amount"]
[1757306143636,39.60846689,208.32,208.31,0.03]
[1757306144220,39.56846689,208.32,208.31,0.72]
[1757306145821,40.26846689,208.32,208.31,0.03]
[1757306146339,39.56846689,208.32,208.31,0.03]
[1757306150339,40.26846689,208.32,208.31,0.03]
[1757306152433,45.0687741,208.32,208.31,0.03]
[1757306152640,46.99161991,208.32,208.31,0.03]
[1757306154043,39.56846689,208.32,208.31,0.03]
[1757306154236,40.26846689,208.32,208.31,0.03]
[1757306154628,39.56846689,208.32,208.31,0.03]
[1757306154826,41.49112785,208.32,208.31,0.03]
[1757306155346,46.99143506,208.32,208.31,0.03]
[1757306155520,42.19112785,208.32,208.31,0.03]
[1757306155723,40.26846689,208.32,208.31,0.03]
[1757306156428,2.44846689,208.32,208.31,0.03]
[1757306156632,2.44846689,208.32,208.31,0.72]
[1757306156846,37.14,208.32,208.31,0.72]
[1757306157528,37.16,208.32,208.31,0.72]
[1757306160441,37.16,208.32,208.31,0.03]
[1757306160957,40.89700056,208.32,208.31,0.03]
[1757306163234,41.59700056,208.32,208.31,0.03]
[1757306163440,46.39730777,208.32,208.31,0.03]
[1757306163827,60.81865136,208.32,208.31,0.03]
[1757306165459,18.91834415,208.32,208.31,0.03]
[1757306165634,41.59700056,208.32,208.31,0.03]
[1757306165838,48.31996873,208.32,208.31,0.03]
[1757306166335,43.51966152,208.32,208.31,0.03]
[1757306166727,48.31996873,208.32,208.31,0.03]
[1757306170941,1.98266096,208.32,208.31,0.03]
[1757306171147,40.85700056,208.32,208.31,0.03]
[1757306173054,45.65730777,208.32,208.31,0.03]
[1757306173645,46.30730777,208.32,208.31,0.03]
[1757306175267,59.90290178,208.32,208.31,0.03]
[1757306175459,61.82584003,208.32,208.31,0.03]
[1757306175964,87.82584003,208.32,208.31,0.03]
[1757306177864,73.58024602,208.32,208.31,0.03]
[1757306178248,74.23024602,208.32,208.31,0.03]
[1757306178438,70.49324546,208.32,208.31,0.03]
[1757306178644,74.23024602,208.32,208.31,0.03]
[1757306178862,87.82584003,208.32,208.31,0.03]
[1757306181693,69.15960934,208.32,208.31,0.03]
[1757306181981,13.59559401,208.31,208.3,1e-08]
[1757306182153,24.66636388,208.31,208.3,1e-08]
[1757306182345,25.31636388,208.31,208.3,1e-08]
[1757306182852,27.23948703,208.31,208.3,1e-08]
[1757306183150,27.23869256,208.31,208.3,1e-08]
[1757306184273,24.5652291,208.31,208.3,1e-08]
[1757306184467,47.56066137,208.31,208.3,1e-08]
[1757306185469,43.82366081,208.31,208.3,1e-08]
[1757306185661,47.56066137,208.31,208.3,1e-08]
[1757306189055,42.74012371,208.31,208.3,0.65000001]
[1757306189473,1.92312315,208.31,208.3,0.65000001]
[1757306189657,0.06,208.32,208.3,0.65000001]
[1757306189866,37.1,208.31,208.3,0.65000001]
[1757306190057,37.1,208.31,208.3,4.38700057]
[1757306191371,0.06,208.32,208.3,9.18776869]
[1757306191578,0.06,208.35,208.31,17.98259457]
[1757306191783,25.85,208.34,208.31,14.24559401]
[1757306191957,0.06,208.35,208.33,26.0]
[1757306192151,0.06,208.37,208.34,26.0]
[1757306192360,0.06,208.39,208.38,26.0]
[1757306192868,0.06,208.39,208.38,29.73700056]
[1757306193471,0.06,208.39,208.38,48.13151961]
[1757306193986,0.06,208.39,208.38,62.53901151]
[1757306194670,0.06,208.39,208.38,48.13151961]
[1757306196665,0.06,208.39,208.38,34.5359256]
[1757306197259,0.06,208.42,208.41,39.59559401]
[1757306197481,1e-08,208.42,208.41,43.33259457]
[1757306197775,1e-08,208.42,208.41,72.17259457]
[1757306197979,1e-08,208.42,208.41,43.33259457]
[1757306198180,1e-08,208.44,208.42,13.59559401]
[1757306198371,1e-08,208.44,208.43,17.33259457]
[1757306198773,1e-08,208.44,208.43,36.53440153]
[1757306200090,55.92206006,208.56,208.47,39.59559401]
[1757306200297,37.18,208.55,208.53,3.73700056]
[1757306201020,37.18,208.55,208.54,3.73700056]
[1757306203704,48.98126731,208.59,208.55,4.79501318]
[1757306203899,37.16,208.58,208.55,4.79501318]
[1757306204094,37.16,208.58,208.53,4.79535112]
[1757306204316,37.82,208.58,208.53,4.79535112]
[1757306204519,37.82,208.58,208.56,3.73700056]
[1757306205112,37.16,208.57,208.56,3.73700056]
[1757306205802,37.82,208.57,208.56,3.73700056]
[1757306206630,37.82,208.57,208.53,4.79525225]
[1757306206799,37.16,208.57,208.55,3.73700056]
[1757306207711,0.06,208.58,208.56,3.73700056]
[1757306207917,0.06,208.58,208.56,26.0]
[1757306207918,37.14,208.57,208.56,26.0]
[1757306209030,37.22,208.58,208.57,26.0]
[1757306209323,37.22,208.58,208.57,3.73700056]
[1757306210513,37.88,208.58,208.53,30.79547249]
[1757306210721,0.66,208.57,208.54,3.73700056]
[1757306210920,0.66,208.56,208.54,3.73700056]
[1757306211228,37.22,208.58,208.54,3.73700056]
[1757306211534,0.66,208.57,208.54,8.53211132]
[1757306212212,37.22,208.58,208.55,3.73700056]
[1757306212419,37.22,208.58,208.56,3.73700056]
[1757306212624,37.88,208.58,208.56,3.73700056]
[1757306212827,37.22,208.58,208.56,3.73700056]
[1757306213020,0.66,208.57,208.56,3.73700056]
[1757306214627,0.66,208.57,208.55,8.53200375]
[1757306215631,0.66,208.57,208.55,88.63200375]
[1757306215928,0.66,208.57,208.55,83.83700056]
[1757306216529,0.66,208.56,208.55,83.83700056]
[1757306216734,0.66,208.56,208.55,80.1]
[1757306217235,37.88,208.58,208.55,88.63201374]
[1757306217435,0.66,208.57,208.55,88.63201374]
[1757306219235,37.22,208.58,208.56,3.73700056]
[1757306219439,37.12,208.57,208.56,3.73700056]
[1757306219932,37.12,208.57,208.56,8.53178383]
[1757306220638,37.12,208.57,208.55,80.1]
[1757306220830,0.66,208.56,208.55,88.63201374]
[1757306221219,37.12,208.57,208.55,88.63201374]
[1757306221620,37.78,208.57,208.55,8.53201374]
[1757306222335,37.78,208.57,208.55,4.79501318]
[1757306222520,37.78,208.57,208.55,7.18037169]
[1757306222719,37.12,208.57,208.54,4.79511625]
[1757306223028,0.66,208.56,208.54,7.18047476]
[1757306223218,0.66,208.55,208.54,7.18047476]
[1757306223418,37.78,208.57,208.54,7.18047476]
[1757306223621,0.66,208.56,208.54,7.18047476]
[1757306224630,37.12,208.57,208.55,2.38535851]
[1757306224829,37.12,208.57,208.55,7.1802473]
[1757306225020,37.18,208.57,208.55,7.1802473]
[1757306225232,37.18,208.57,208.56,2.38535851]
[1757306225424,37.83,208.57,208.54,2.38535851]
[1757306225618,37.16,208.57,208.54,2.38535851]
[1757306225938,0.67,208.56,208.54,2.38535851]
[1757306226436,37.16,208.57,208.55,2.38535851]
[1757306226635,37.83,208.57,208.55,2.38535851]
[1757306227346,0.67,208.56,208.55,2.38535851]
[1757306227517,37.16,208.57,208.55,2.38535851]
[1757306227518,37.16,208.57,208.55,82.48535851]
[1757306227713,37.16,208.57,208.56,2.38535851]
[1757306227944,0.06,208.57,208.56,2.38535851]
[1757306228127,0.06,208.57,208.56,31.22535851]
[1757306228522,0.06,208.57,208.56,111.32535851]
[1757306228843,0.06,208.6,208.56,111.32535851]
[1757306228844,0.06,208.6,208.59,54.84]
[1757306229024,0.06,208.6,208.59,137.32535851]
[1757306229224,0.06,208.6,208.59,142.11945218]
[1757306229420,0.67,208.65,208.59,74.00468637]
[1757306229615,24.38837716,208.72,208.64,2.38535851]
[1757306229616,0.67,208.67,208.64,2.38535851]
[1757306229817,37.79,208.66,208.64,2.38535851]
[1757306230035,37.12,208.66,208.64,2.38535851]
[1757306230231,37.12,208.66,208.65,2.38535851]
[1757306230840,37.79,208.66,208.65,2.38535851]
[1757306231548,0.67,208.68,208.65,7.17807358]
[1757306231845,37.12,208.66,208.65,4.79271507]
[1757306232048,37.79,208.66,208.65,4.79271507]
[1757306232248,37.79,208.66,208.62,4.79340427]
[1757306232435,0.67,208.65,208.62,4.79340427]
[1757306232636,37.12,208.66,208.62,4.79340427]
[1757306233049,37.12,208.66,208.65,2.38535851]
[1757306233830,37.12,208.66,208.65,7.17807358]
[1757306234254,37.12,208.66,208.65,4.79271507]
[1757306234631,37.12,208.66,208.65,7.17807358]
[1757306235027,24.38837716,208.72,208.65,87.27807358]
[1757306235837,37.1,208.7,208.69,7.17715495]
[1757306236357,0.67,208.75,208.69,7.17715495]
[1757306236543,37.77,208.75,208.73,2.38535851]
[1757306236737,37.1,208.75,208.73,2.38535851]
[1757306236943,0.67,208.74,208.69,4.79179644]
[1757306237151,0.67,208.74,208.7,26.0]
[1757306237339,0.67,208.74,208.73,2.38535851]
[1757306237539,37.81,208.76,208.73,2.38535851]
[1757306238065,37.81,208.76,208.74,4.79064865]
[1757306238357,0.67,208.75,208.73,2.38535851]
[1757306238563,0.67,208.75,208.74,2.38535851]
[1757306239153,0.67,208.78,208.74,2.38535851]
[1757306239462,2.38535851,208.83,208.77,2.38535851]
[1757306239658,37.12,208.82,208.78,2.38535851]
[1757306239860,0.67,208.81,208.78,2.38535851]
[1757306240165,0.67,208.8,208.78,2.38535851]
[1757306240362,37.12,208.81,208.78,2.38535851]
[1757306240557,0.67,208.79,208.78,2.38535851]
[1757306243567,37.75,208.79,208.78,2.38535851]
[1757306245362,37.81,208.79,208.73,4.7908759]
[1757306245542,0.67,208.78,208.76,2.38535851]
[1757306245741,0.67,208.77,208.76,2.38535851]
[1757306247947,0.67,208.77,208.73,30.79087816]
[1757306248248,37.14,208.79,208.73,30.79087816]
[1757306248449,37.14,208.79,208.77,2.38535851]
[1757306248653,0.67,208.78,208.77,2.38535851]
[1757306249973,37.71,208.78,208.77,2.38535851]
[1757306251761,37.71,208.78,208.74,4.79042773]
[1757306251953,0.67,208.77,208.76,2.38535851]
[1757306253553,0.67,208.77,208.75,2.38535851]
[1757306253757,0.67,208.76,208.68,11.97973314]
[1757306253963,0.67,208.75,208.74,2.38535851]
[1757306254156,0.67,208.75,208.72,26.0]
[1757306254484,0.67,208.74,208.67,14.38538445]
[1757306254658,37.73,208.73,208.69,2.38535851]
[1757306254860,2.38535851,208.75,208.69,2.38535851]
[1757306254861,37.75,208.72,208.69,2.38535851]
[1757306255056,0.67,208.71,208.69,2.38535851]
[1757306255715,0.71,208.7,208.69,2.38535851]
[1757306256588,37.08,208.72,208.68,2.38535851]
[1757306256880,28.38535851,208.69,208.62,2.38535851]
[1757306257084,2.38535851,208.68,208.62,2.38535851]
[1757306257379,37.87,208.67,208.62,2.38535851]
[1757306257682,0.71,208.66,208.63,2.38535851]
[1757306257876,0.71,208.65,208.62,4.79338585]
[1757306258088,0.71,208.64,208.63,2.38535851]
[1757306258785,0.71,208.64,208.6,0.03]
[1757306259288,3.09535851,208.64,208.6,0.03]
[1757306259472,37.18,208.63,208.6,0.03]
[1757306259867,0.71,208.62,208.6,0.03]
[1757306260270,2.38535851,208.61,208.6,0.03]
[1757306260679,0.71,208.61,208.6,0.03]
[1757306261078,37.91,208.61,208.6,0.03]
[1757306262360,37.89,208.61,208.6,0.03]
[1757306262668,37.18,208.61,208.6,2.41535851]
[1757306262969,37.2,208.61,208.6,2.41535851]
[1757306263887,37.91,208.61,208.6,2.41535851]
[1757306264768,0.71,208.61,208.6,7.20922236]
[1757306264967,37.2,208.61,208.6,7.20922236]
[1757306265582,37.91,208.61,208.6,0.03]
[1757306267376,0.71,208.61,208.6,0.03]
[1757306267580,37.91,208.61,208.6,0.03]
[1757306267778,40.29535851,208.61,208.6,0.03]
[1757306267984,45.08899256,208.61,208.57,0.03]
[1757306268195,2.38535851,208.58,208.57,0.03]
[1757306268687,3.09535851,208.58,208.57,0.03]
[1757306270385,7.88968203,208.58,208.57,0.03]
[1757306272764,47.48527604,208.58,208.57,0.03]
[1757306273375,35.89000079,208.58,208.57,0.03]
[1757306274878,73.09000079,208.58,208.57,0.03]
[1757306277773,70.70464228,208.58,208.57,0.03]
[1757306277982,73.09000079,208.58,208.57,0.03]
[1757306279305,93.09000079,208.58,208.57,0.03]
[1757306280074,13.59559401,208.57,208.55,0.03]
[1757306280304,53.18095252,208.56,208.55,0.03]
[1757306280596,53.89095252,208.56,208.55,0.03]
[1757306280801,58.68873977,208.56,208.55,0.03]
[1757306280994,63.48352304,208.56,208.55,0.03]
[1757306281993,63.48352304,208.56,208.44,0.03]
[1757306281994,39.59559401,208.52,208.44,0.03]
[1757306282183,2.38535851,208.48,208.44,0.03]
[1757306282387,37.2,208.47,208.44,0.03]
[1757306282578,37.2,208.46,208.45,0.04]
[1757306283475,3.73197786,208.5,208.45,0.04]
[1757306283676,37.2,208.49,208.45,0.04]
[1757306284299,40.93197786,208.49,208.44,0.03]
[1757306284502,40.93197786,208.49,208.44,0.07]
[1757306284680,37.2,208.48,208.44,0.07]
[1757306286093,3.73197786,208.49,208.44,4.86751353]
[1757306286285,37.2,208.48,208.44,4.86751353]
[1757306287099,37.18,208.47,208.45,0.04]
[1757306287405,3.73197786,208.5,208.45,3.77197786]
[1757306287603,37.18,208.49,208.45,3.73197786]
[1757306287913,3.73197786,208.5,208.44,4.82751353]
[1757306288094,3.73197786,208.5,208.45,3.73197786]
[1757306288095,37.18,208.49,208.45,3.73197786]
[1757306288288,37.18,208.49,208.45,3.77197786]
[1757306288496,0.68,208.51,208.45,3.77197786]
[1757306288701,37.2,208.5,208.46,3.73197786]
[1757306289002,37.2,208.49,208.45,3.73197786]
[1757306289306,37.2,208.49,208.45,3.77197786]
[1757306289807,41.61197786,208.49,208.44,4.82751353]
[1757306289979,41.61197786,208.49,208.44,8.55949139]
[1757306290408,0.68,208.51,208.45,3.73197786]
[1757306290584,3.73197786,208.49,208.44,4.82751353]
[1757306290783,4.41197786,208.49,208.44,8.55949139]
[1757306291004,3.73197786,208.47,208.44,0.03]
[1757306291311,3.73197786,208.45,208.44,0.03]
[1757306291688,0.68,208.45,208.44,0.03]
[1757306292807,21.57704268,208.6,208.44,0.03]
[1757306292808,0.68,208.49,208.44,0.03]
[1757306292996,37.22,208.48,208.45,3.73197786]
[1757306293301,37.26,208.47,208.44,0.03]
[1757306293596,37.26,208.47,208.44,3.76197786]
[1757306293809,37.94,208.47,208.44,0.03]
[1757306294683,37.26,208.47,208.44,0.03]
[1757306295012,37.26,208.46,208.44,0.03]
[1757306295723,37.26,208.46,208.44,3.76197786]
[1757306296804,37.26,208.45,208.44,3.76197786]
[1757306297419,0.68,208.47,208.44,0.03]
[1757306297717,37.92,208.46,208.44,0.03]
[1757306298018,37.24,208.45,208.44,0.03]
[1757306298528,37.119955,208.45,208.44,0.03]
[1757306298712,37.799955,208.45,208.44,0.03]
[1757306299924,46.32924636,208.45,208.44,0.03]
[1757306300109,41.53193286,208.45,208.44,0.03]
[1757306300816,46.32924636,208.45,208.44,0.03]
[1757306301318,59.92484037,208.45,208.44,0.03]
[1757306301521,26.0,208.42,208.41,0.03]
[1757306301815,66.97197786,208.42,208.39,0.03]
[1757306302021,3.73197786,208.4,208.39,0.03]
[1757306302494,4.41197786,208.4,208.39,0.03]
[1757306303408,21.73954973,208.4,208.39,0.03]
[1757306303609,26.53801422,208.4,208.39,0.03]
[1757306304116,22.80603636,208.4,208.39,0.03]
[1757306306518,19.0740585,208.4,208.39,0.03]
[1757306306712,22.80603636,208.4,208.39,0.03]
[1757306307204,26.53801422,208.4,208.39,0.03]
[1757306307514,63.79801422,208.4,208.39,0.03]
[1757306307920,18.00757187,208.4,208.39,0.03]
[1757306308256,41.67197786,208.4,208.39,0.03]
[1757306308715,4.41197786,208.4,208.39,0.03]
[1757306308918,41.67197786,208.4,208.39,0.03]
[1757306309323,46.47044235,208.4,208.39,0.03]
[1757306309631,9.21044235,208.4,208.39,0.03]
[1757306309805,46.47044235,208.4,208.39,0.03]
[1757306310807,63.79801422,208.4,208.39,0.03]
[1757306311205,60.06603636,208.4,208.39,0.03]
[1757306312237,63.79801422,208.4,208.39,0.03]
[1757306312533,56.3340585,208.4,208.39,0.03]
[1757306312834,65.72039797,208.4,208.39,0.03]
[1757306314736,13.59559401,208.36,208.31,0.03]
[1757306314937,3.73197786,208.32,208.31,0.03]
[1757306315140,40.99197786,208.32,208.31,0.03]
[1757306315940,41.68197786,208.32,208.31,0.03]
[1757306316641,40.99197786,208.32,208.31,0.03]
[1757306317432,41.68197786,208.32,208.31,0.03]
[1757306317620,46.48228507,208.32,208.31,0.03]
[1757306318847,63.24,208.32,208.31,0.03]
[1757306319516,5.65463882,208.37,208.31,0.13]
[1757306319723,40.99197786,208.36,208.31,0.13]
[1757306320319,4.42197786,208.35,208.31,0.03]
[1757306320519,37.28,208.34,208.31,0.03]
[1757306320821,41.01197786,208.34,208.31,0.03]
[1757306321437,0.69,208.33,208.31,0.03]
[1757306321632,41.01197786,208.32,208.31,0.03]
[1757306321837,41.70197786,208.32,208.31,0.03]
[1757306323320,37.28,208.32,208.31,0.03]
[1757306324332,4.42197786,208.34,208.31,0.03]
[1757306324649,37.26,208.33,208.31,0.03]
[1757306325221,26.69,208.34,208.31,0.03]
[1757306325419,37.26,208.33,208.31,0.03]
[1757306326845,37.26,208.32,208.31,0.13]
[1757306327048,37.28,208.32,208.31,3.76197786]
[1757306327356,37.28,208.32,208.31,0.03]
[1757306329561,46.50228507,208.32,208.31,0.03]
[1757306331947,60.09787908,208.32,208.31,0.03]
[1757306333357,22.81787908,208.32,208.31,0.03]
[1757306333528,60.11787908,208.32,208.31,0.03]
[1757306334533,62.0410947,208.32,208.31,0.03]
[1757306337049,65.77307256,208.32,208.31,0.03]
[1757306337633,62.0410947,208.32,208.31,0.03]
[1757306338157,85.77307256,208.32,208.31,0.03]
[1757306338335,82.0410947,208.32,208.31,0.03]
[1757306338536,62.0410947,208.32,208.31,0.03]
[1757306340230,24.7410947,208.32,208.31,0.03]
[1757306340435,58.28911684,208.32,208.31,0.03]
[1757306340633,62.0210947,208.32,208.31,0.03]
[1757306344364,60.68270275,208.32,208.31,0.03]
[1757306346540,58.28911684,208.32,208.31,0.03]
[1757306346742,60.68270275,208.32,208.31,0.03]
[1757306352057,44.39659261,208.29,208.28,0.03]
[1757306352261,84.03017852,208.29,208.28,0.03]
[1757306352443,84.70017852,208.29,208.28,0.03]
[1757306352647,44.58276548,208.29,208.28,0.03]
[1757306352863,49.38376408,208.29,208.28,0.03]
[1757306353370,86.64376408,208.29,208.28,0.03]
[1757306354370,86.64376408,208.29,208.27,1e-08]
[1757306354557,15.98917992,208.28,208.27,1e-08]
[1757306355043,18.58304304,208.28,208.27,1e-08]
[1757306356364,44.3972842,208.26,208.25,1e-08]
[1757306356564,84.05087011,208.26,208.25,1e-08]
[1757306356868,84.72087011,208.26,208.25,1e-08]
[1757306357070,110.2281935,208.26,208.25,1e-08]
[1757306357267,13.59559401,208.25,208.23,0.03]
[1757306357653,16.65917992,208.25,208.23,0.03]
[1757306358573,21.46110068,208.25,208.23,0.03]
[1757306359477,13.59559401,208.23,208.22,0.03]
[1757306359648,53.22917992,208.23,208.22,0.03]
[1757306359971,70.57378648,208.23,208.22,0.03]
[1757306360278,13.59559401,208.16,208.13,0.1]
[1757306360451,2.39358591,208.14,208.13,0.1]
[1757306360645,39.65358591,208.14,208.13,0.1]
[1757306360846,44.45961762,208.14,208.13,0.1]
[1757306361164,44.45961762,208.14,208.06,4.80629726]
[1757306361369,2.39358591,208.13,208.11,0.1]
[1757306361568,37.26,208.12,208.11,0.1]
[1757306362569,37.24,208.12,208.11,0.1]
[1757306363261,37.24,208.12,208.09,0.1]
[1757306363459,4.80603171,208.14,208.1,0.1]
[1757306363666,39.63358591,208.13,208.11,0.1]
[1757306363852,37.24,208.12,208.11,0.1]
[1757306364672,39.63358591,208.12,208.07,0.1]
[1757306364853,39.63358591,208.12,208.08,0.1]
[1757306365167,37.24,208.11,208.09,0.1]
[1757306365369,37.24,208.11,208.1,0.1]
[1757306365669,39.63358591,208.11,208.07,0.1]
[1757306365975,37.24,208.11,208.08,0.1]
[1757306366275,37.24,208.11,208.09,0.1]
[1757306367064,37.24,208.11,208.07,2.39358591]
[1757306367270,37.24,208.11,208.07,0.1]
[1757306367583,37.24,208.11,208.08,0.1]
[1757306367871,37.24,208.11,208.08,2.49358591]
[1757306367872,42.04653522,208.11,208.08,2.49358591]
[1757306368668,4.80653522,208.11,208.1,2.39358591]
[1757306368853,42.10653522,208.11,208.1,2.39358591]
[1757306369364,37.3,208.11,208.09,2.39358591]
[1757306369670,42.10653689,208.11,208.09,2.39358591]
[1757306369869,42.10653689,208.11,208.1,2.39358591]
[1757306370087,37.3,208.11,208.1,2.39358591]
[1757306370868,37.3,208.11,208.09,2.39358591]
[1757306371252,42.10625538,208.11,208.09,2.39358591]
[1757306372790,37.3,208.11,208.09,2.39358591]
[1757306372967,37.3,208.11,208.1,2.39358591]
[1757306374861,37.3,208.11,208.05,80.1]
[1757306375060,37.3,208.11,208.09,2.39358591]
[1757306375678,37.3,208.11,208.09,2.42358591]
[1757306376264,0.69,208.1,208.09,2.42358591]
[1757306376762,37.3,208.11,208.09,2.42358591]
[1757306377280,37.99,208.11,208.09,2.42358591]
[1757306377459,37.3,208.11,208.09,2.42358591]
[1757306377652,0.69,208.18,208.1,2.49358591]
[1757306377858,37.28,208.17,208.14,2.39358591]
[1757306378070,37.97,208.17,208.14,2.39358591]
[1757306378274,37.28,208.17,208.14,2.39358591]
[1757306378482,0.69,208.16,208.13,2.39358591]
[1757306378683,37.28,208.15,208.13,2.39358591]
[1757306379173,37.28,208.15,208.09,0.03]
[1757306379174,37.28,208.15,208.12,2.39358591]
[1757306379389,0.69,208.14,208.12,2.39358591]
[1757306379678,37.28,208.13,208.12,2.39358591]
[1757306380290,37.28,208.13,208.09,0.13]
[1757306380581,37.28,208.13,208.12,2.39358591]
[1757306381075,37.28,208.13,208.11,2.39358591]
[1757306382392,42.18576684,208.13,208.11,2.39358591]
[1757306382966,0.69,208.12,208.1,2.39358591]
[1757306383163,0.69,208.12,208.09,2.42358591]
[1757306383164,37.26,208.11,208.09,2.42358591]
[1757306383481,42.09609171,208.11,208.1,2.39358591]
[1757306384173,37.26,208.11,208.1,2.39358591]
[1757306384382,42.06606838,208.11,208.1,2.39358591]
[1757306385257,42.06606838,208.11,208.09,2.42358591]
[1757306386478,42.06606838,208.11,208.1,2.39358591]
[1757306387290,42.75606838,208.11,208.09,0.03]
[1757306387478,42.75606838,208.11,208.1,2.39358591]
[1757306388268,42.75606838,208.11,208.09,0.03]
[1757306388694,37.26,208.11,208.09,2.42358591]
[1757306389387,37.95,208.11,208.09,2.42358591]
[1757306390468,37.26,208.11,208.1,2.39358591]
[1757306391184,37.95,208.11,208.1,2.39358591]
[1757306392583,4.80602117,208.12,208.1,2.39358591]
[1757306392883,37.22,208.12,208.11,0.1]
[1757306393081,37.22,208.12,208.11,2.49358591]
[1757306393484,37.22,208.12,208.11,7.29873703]
[1757306395769,37.22,208.12,208.11,33.19873703]
[1757306397267,37.22,208.12,208.11,2.39358591]
[1757306397468,37.22,208.12,208.11,7.19873703]
[1757306400571,37.22,208.12,208.11,2.39358591]
[1757306400798,37.22,208.12,208.11,7.19873703]
[1757306405492,37.22,208.12,208.11,7.29873703]
[1757306406190,37.22,208.12,208.11,7.19873703]
[1757306406398,37.22,208.12,208.11,8.5466535]
[1757306407412,37.22,208.12,208.11,8.6466535]
[1757306408008,0.06,208.19,208.15,26.0]
[1757306408182,0.06,208.19,208.18,3.74150238]
[1757306408383,0.76,208.19,208.18,3.74150238]
[1757306408801,0.06,208.19,208.18,3.84150238]
[1757306409401,0.06,208.19,208.18,8.64503778]
[1757306410194,0.06,208.22,208.21,26.0]
[1757306410396,0.06,208.22,208.21,29.74150238]
[1757306411098,0.06,208.22,208.21,3.84150238]
[1757306411296,0.06,208.22,208.21,34.54434566]
[1757306413979,0.76,208.22,208.21,26.0]
[1757306414291,0.76,208.22,208.16,43.26203687]
[1757306414292,0.76,208.22,208.2,3.74150238]
[1757306414500,0.7,208.21,208.2,3.74150238]
[1757306415394,0.7,208.21,208.2,29.74150238]
[1757306416298,0.06,208.22,208.2,34.54457634]
[1757306416502,0.76,208.22,208.21,3.74150238]
[1757306416887,0.7,208.21,208.2,26.0]
[1757306417198,0.06,208.22,208.2,30.80307396]
[1757306417376,0.7,208.21,208.2,30.80307396]
[1757306418193,0.7,208.21,208.2,34.54457634]
[1757306419408,0.7,208.21,208.2,29.74150238]
[1757306421983,0.7,208.21,208.19,3.74150238]
[1757306422184,37.92,208.2,208.19,3.74150238]
[1757306422908,37.92,208.2,208.18,3.74150238]
[1757306423104,0.7,208.19,208.18,3.74150238]
[1757306424782,0.7,208.19,208.16,30.80399432]
[1757306425013,0.7,208.18,208.17,3.74150238]
[1757306425306,0.7,208.18,208.13,80.1]
[1757306425307,0.7,208.18,208.14,3.74150238]
[1757306425508,37.9,208.17,208.14,3.74150238]
[1757306425705,0.7,208.16,208.14,3.74150238]
[1757306426008,0.7,208.15,208.13,3.74150238]
[1757306426209,37.9,208.14,208.12,3.74150238]
[1757306426399,37.92,208.13,208.12,83.84150238]
[1757306427206,37.22,208.13,208.12,88.64642261]
[1757306427397,37.24,208.2,208.15,26.0]
[1757306427598,37.94,208.2,208.19,3.74150238]
[1757306429511,37.94,208.2,208.18,3.77150238]
[1757306430314,0.7,208.19,208.18,0.03]
[1757306431995,0.7,208.19,208.18,3.77150238]
[1757306432601,0.7,208.19,208.18,0.03]
[1757306433912,0.06,208.22,208.18,3.77150238]
[1757306434213,37.92,208.21,208.19,3.74150238]
[1757306434418,42.72446682,208.21,208.19,3.74150238]
[1757306434618,0.7,208.2,208.19,3.74150238]
[1757306435117,0.7,208.2,208.18,0.03]
[1757306435300,37.22,208.21,208.19,3.74150238]
[1757306435616,37.22,208.21,208.18,0.03]